bitfinex-derivatives/quotes_BTCF0:USTF0_20250814
["timestamp","ask_amount","ask_price","bid_price","bid_amount"]
[1755148241036,1.17664093,123110.0,123100.0,0.78223979]
[1755148241233,1.05664093,123110.0,123100.0,0.78223979]
[1755148243537,1.80080093,123110.0,123100.0,0.78223979]
[1755148244340,1.80080093,123110.0,123100.0,0.78224022]
[1755148245647,1.80080093,123110.0,123100.0,0.33324011]
[1755148245844,1.80080093,123110.0,123100.0,0.78224022]
[1755148249251,1.35180082,123110.0,123100.0,0.78224022]
[1755148249458,1.80080093,123110.0,123100.0,0.78224022]
[1755148250045,1.35180082,123110.0,123100.0,0.78224022]
[1755148250351,1.05664093,123110.0,123100.0,1.52636022]
[1755148251258,1.05664093,123110.0,123100.0,1.52632022]
[1755148253357,1.05664093,123110.0,123100.0,1.5263202]
[1755148255453,1.05683093,123110.0,123100.0,1.5263202]
[1755148256357,0.48898082,123110.0,123100.0,0.78224017]
[1755148256562,0.48898082,123110.0,123100.0,1.52628017]
[1755148258159,0.57225082,123110.0,123100.0,1.52628017]
[1755148258352,0.57225082,123110.0,123100.0,0.78224017]
[1755148258556,1.03571093,123110.0,123100.0,1.52624017]
[1755148259259,1.03571093,123110.0,123100.0,0.78224017]
[1755148259456,1.03571093,123110.0,123100.0,1.52624017]
[1755148259955,0.69615093,123110.0,123100.0,1.52624017]
[1755148260357,0.69615093,123110.0,123100.0,0.78224017]
[1755148260559,0.69615093,123110.0,123100.0,1.52624017]
[1755148261055,1.05695093,123110.0,123100.0,1.52624017]
[1755148261353,0.69615093,123110.0,123100.0,1.52624017]
[1755148261560,1.05695093,123110.0,123100.0,1.52624017]
[1755148261761,0.69615093,123110.0,123100.0,1.52624017]
[1755148263158,0.69615093,123110.0,123100.0,0.78224017]
[1755148263357,0.69615093,123110.0,123100.0,1.52624017]
[1755148263556,0.69615093,123110.0,123100.0,0.78224017]
[1755148263759,1.05695093,123110.0,123100.0,1.52624017]
[1755148264062,1.05695093,123110.0,123100.0,0.78224017]
[1755148264263,1.05695093,123110.0,123100.0,1.07724006]
[1755148264457,1.05695093,123110.0,123100.0,1.52624017]
[1755148264663,1.05695093,123110.0,123100.0,0.78224017]
[1755148264664,0.69615093,123110.0,123100.0,0.78224017]
[1755148264862,0.69615093,123110.0,123100.0,1.52620017]
[1755148265362,0.69615093,123110.0,123100.0,0.78224017]
[1755148265556,0.69615093,123110.0,123100.0,1.52620017]
[1755148265762,1.05695093,123110.0,123100.0,1.52620017]
[1755148266772,0.69615093,123110.0,123100.0,1.52620017]
[1755148267263,0.69615093,123110.0,123100.0,1.07720006]
[1755148267567,0.69615093,123110.0,123100.0,1.52620017]
[1755148268664,1.05695093,123110.0,123100.0,1.52620017]
[1755148268866,1.05695093,123110.0,123100.0,0.78224017]
[1755148269066,1.05695093,123110.0,123100.0,1.52620017]
[1755148269761,1.05695093,123110.0,123100.0,1.07720006]
[1755148269965,1.05695093,123110.0,123100.0,1.52620017]
[1755148271763,0.69615093,123110.0,123100.0,1.52616017]
[1755148271970,1.05695093,123110.0,123100.0,1.52616017]
[1755148272668,1.05695093,123110.0,123100.0,1.07716006]
[1755148272968,0.69783207,123110.0,123100.0,1.52616017]
[1755148273167,0.69783207,123110.0,123100.0,0.78224017]
[1755148273369,1.05863207,123110.0,123100.0,1.52616017]
[1755148274464,0.69783207,123110.0,123100.0,1.52616017]
[1755148274763,1.04073041,123110.0,123100.0,1.52616017]
[1755148274969,0.67993041,123110.0,123100.0,1.52616017]
[1755148275667,0.67993041,123110.0,123100.0,0.78224017]
[1755148275870,0.2309303,123110.0,123100.0,1.52612017]
[1755148276067,0.67993041,123110.0,123100.0,1.52612017]
[1755148278969,1.04073041,123110.0,123100.0,1.52612017]
[1755148279369,1.04073041,123110.0,123100.0,1.52612015]
[1755148280057,0.5917303,123110.0,123100.0,1.52612015]
[1755148280267,0.67993041,123110.0,123100.0,1.52612015]
[1755148280864,1.04073041,123110.0,123100.0,1.52612015]
[1755148281263,0.67993041,123110.0,123100.0,1.52612015]
[1755148281471,1.04073041,123110.0,123100.0,1.52612015]
[1755148281664,0.67993041,123110.0,123100.0,1.52612015]
[1755148282065,1.04073041,123110.0,123100.0,1.52612015]
[1755148282262,0.67993041,123110.0,123100.0,1.52612015]
[1755148282468,0.67993041,123110.0,123100.0,1.52612002]
[1755148285166,0.69767931,123110.0,123100.0,1.52612002]
[1755148286083,1.05847931,123110.0,123100.0,1.52612002]
[1755148286292,0.69767931,123110.0,123100.0,1.52612002]
[1755148286582,1.05847931,123110.0,123100.0,1.52612002]
[1755148286778,0.69767931,123110.0,123100.0,1.52612002]
[1755148286984,1.05847931,123110.0,123100.0,1.52612002]
[1755148287485,0.69767931,123110.0,123100.0,1.52612002]
[1755148287683,1.05847931,123110.0,123100.0,1.52612002]
[1755148287984,0.69767931,123110.0,123100.0,1.52612002]
[1755148288176,0.1458492,123110.0,123100.0,0.78224002]
[1755148288492,0.1458492,123110.0,123100.0,1.52604002]
[1755148288870,0.1458492,123110.0,123100.0,1.07703991]
[1755148288871,0.2315592,123110.0,123100.0,1.07703991]
[1755148289076,1.05535931,123110.0,123100.0,1.52604002]
[1755148289376,1.05535931,123110.0,123100.0,1.07703991]
[1755148289572,0.6063592,123110.0,123100.0,1.52604002]
[1755148289777,1.05535931,123110.0,123100.0,1.52604002]
[1755148290186,1.05535931,123110.0,123100.0,1.07703991]
[1755148290384,1.05535931,123110.0,123100.0,1.52604002]
[1755148290781,1.05535931,123110.0,123100.0,1.07703991]
[1755148290989,1.05535931,123110.0,123100.0,1.52604302]
[1755148291185,1.17535931,123110.0,123100.0,1.52604302]
[1755148291484,1.05535931,123110.0,123100.0,1.07704291]
[1755148291687,1.05535931,123110.0,123100.0,1.52604302]
[1755148292684,1.05535931,123110.0,123100.0,0.78224302]
[1755148292983,1.05535931,123110.0,123100.0,1.52600302]
[1755148293184,1.05535931,123110.0,123100.0,0.33324291]
[1755148293386,1.79911931,123110.0,123100.0,1.07700291]
[1755148294287,1.79911931,123110.0,123100.0,1.0770031]
[1755148294484,1.92911931,123110.0,123100.0,1.0770031]
[1755148294886,1.9291832,123110.0,123100.0,0.3332431]
[1755148295589,1.48018309,123110.0,123100.0,0.3332431]
[1755148295791,1.1854232,123110.0,123100.0,0.3332431]
[1755148296189,1.9291432,123110.0,123100.0,0.3332431]
[1755148297192,1.9291432,123110.0,123100.0,0.25769734]
[1755148298989,1.7991432,123110.0,123100.0,0.25769734]
[1755148299288,1.7991432,123110.0,123100.0,0.17649394]
[1755148299789,1.9091432,123110.0,123100.0,0.10697394]
[1755148299994,1.9091432,123110.0,123100.0,0.05915394]
[1755148300992,1.1654232,123110.0,123100.0,0.05915394]
[1755148301188,1.9091432,123110.0,123100.0,0.05915394]
[1755148301584,0.1745166,123080.0,123070.0,0.1721154]
[1755148301791,0.68777578,123080.0,123070.0,0.73055551]
[1755148302199,0.79777578,123080.0,123070.0,0.11911]
[1755148302403,0.68777578,123080.0,123070.0,0.2003332]
[1755148302596,0.68784454,123080.0,123070.0,0.2003332]
[1755148302800,1.43152454,123080.0,123070.0,0.2003332]
[1755148302994,1.43152454,123080.0,123070.0,0.64933331]
[1755148303200,0.68984454,123080.0,123070.0,0.64933331]
[1755148304093,1.05859863,123080.0,123070.0,0.56811011]
[1755148304402,0.1971232,123070.0,123060.0,1.0252447]
[1755148304605,0.2208867,123070.0,123060.0,1.47424481]
[1755148305098,0.73601444,123070.0,123060.0,1.47424481]
[1755148305299,0.28701433,123070.0,123060.0,1.47424481]
[1755148306093,0.28801433,123070.0,123060.0,1.47424481]
[1755148306799,0.28901433,123070.0,123060.0,1.47524481]
[1755148307200,0.26525083,123070.0,123060.0,1.47524481]
[1755148307604,0.14935083,123070.0,123060.0,1.18056492]
[1755148307800,0.28894827,123070.0,123060.0,1.92428492]
[1755148308101,0.28894827,123070.0,123060.0,0.73156481]
[1755148308300,0.28894827,123070.0,123060.0,1.47528481]
[1755148308508,0.73794838,123070.0,123060.0,1.47428481]
[1755148308799,0.73794838,123070.0,123060.0,1.39305701]
[1755148309402,0.28894827,123070.0,123060.0,0.9440569]
[1755148309603,0.73794838,123070.0,123060.0,1.39305701]
[1755148311200,0.73794838,123070.0,123060.0,0.12011]
[1755148311501,0.73794838,123070.0,123060.0,0.65033991]
[1755148311702,0.28894827,123070.0,123060.0,0.65033991]
[1755148311897,0.73794838,123070.0,123060.0,0.65033991]
[1755148313701,0.73794838,123070.0,123060.0,0.21404276]
[1755148313902,0.73794838,123070.0,123060.0,0.66304287]
[1755148314102,0.73794838,123070.0,123060.0,0.21404276]
[1755148314302,0.28894827,123070.0,123060.0,0.21404276]
[1755148314504,0.73794838,123070.0,123060.0,0.66304287]
[1755148317306,0.22066827,123070.0,123060.0,0.66304287]
[1755148317503,0.17304827,123070.0,123060.0,1.85580298]
[1755148317704,0.17304827,123070.0,123060.0,1.40680287]
[1755148317898,0.29268827,123070.0,123060.0,1.40680287]
[1755148318105,0.29268827,123070.0,123060.0,1.40684287]
[1755148318307,0.74168838,123070.0,123060.0,1.40684287]
[1755148318807,0.29268827,123070.0,123060.0,1.40684287]
[1755148319008,0.74168838,123070.0,123060.0,1.40684287]
[1755148320004,0.74168838,123070.0,123060.0,0.66304287]
[1755148321004,0.74168838,123070.0,123060.0,1.40684287]
[1755148321209,0.74168838,123070.0,123060.0,0.21404276]
[1755148321404,0.74168838,123070.0,123060.0,1.40684287]
[1755148321597,0.74168838,123070.0,123060.0,0.95784276]
[1755148321797,0.74168838,123070.0,123060.0,1.40684287]
[1755148322002,0.74168838,123070.0,123060.0,0.21404276]
[1755148322307,1.48548838,123070.0,123060.0,0.66304287]
[1755148322902,1.48548838,123070.0,123060.0,0.66304296]
[1755148324215,0.74168838,123070.0,123060.0,0.66304296]
[1755148324810,0.74168838,123070.0,123060.0,1.40684296]
[1755148325006,0.74168838,123070.0,123060.0,0.66304296]
[1755148325314,0.74168838,123070.0,123060.0,1.40684296]
[1755148325517,0.29268827,123070.0,123060.0,1.40684296]
[1755148326114,0.29268827,123070.0,123060.0,0.66304296]
[1755148326312,0.17304827,123070.0,123060.0,0.66304296]
[1755148326511,0.17304827,123070.0,123060.0,1.85584307]
[1755148329020,0.09182507,123070.0,123060.0,1.85584307]
[1755148329918,0.09182507,123070.0,123060.0,1.47284307]
[1755148330117,0.09182507,123070.0,123060.0,2.21664307]
[1755148330718,0.09182507,123070.0,123060.0,2.33827373]
[1755148330915,0.06812763,123070.0,123060.0,2.33827373]
[1755148331115,0.09180258,123070.0,123060.0,2.33827373]
[1755148331710,0.09180258,123070.0,123060.0,1.5944721]
[1755148331910,0.09180258,123070.0,123060.0,2.3382721]
[1755148333919,0.09180258,123070.0,123060.0,2.33827218]
[1755148335616,0.18934528,123070.0,123060.0,1.14547207]
[1755148335917,0.18934528,123070.0,123060.0,0.33567196]
[1755148335918,0.85166539,123070.0,123060.0,0.33567196]
[1755148336123,0.74166539,123070.0,123060.0,1.53599207]
[1755148336623,0.74166539,123070.0,123060.0,1.08699196]
[1755148336825,0.74166539,123070.0,123060.0,0.34802886]
[1755148337019,0.74166539,123070.0,123060.0,1.10034886]
[1755148337216,0.86166539,123070.0,123060.0,0.26448196]
[1755148337421,0.74166539,123070.0,123060.0,0.78649207]
[1755148337726,0.74166539,123070.0,123060.0,0.78649331]
[1755148337920,0.29266528,123070.0,123060.0,0.78649331]
[1755148338120,0.74166539,123070.0,123060.0,0.3374932]
[1755148338325,0.74166539,123070.0,123060.0,0.78649331]
[1755148338626,0.29266528,123070.0,123060.0,0.3374932]
[1755148339224,0.80224496,123070.0,123060.0,0.3374932]
[1755148339419,0.40266528,123070.0,123060.0,0.3374932]
[1755148339818,0.40266528,123070.0,123060.0,0.2165632]
[1755148340020,1.16304496,123070.0,123060.0,0.09777274]
[1755148340327,1.16304496,123070.0,123060.0,0.13585274]
[1755148340522,0.76346528,123070.0,123060.0,0.13585274]
[1755148340726,1.16304496,123070.0,123060.0,0.13585274]
[1755148341122,1.16304496,123070.0,123060.0,0.01370274]
[1755148341323,0.0812359,123050.0,123040.0,0.2073925]
[1755148341523,0.22463411,123050.0,123040.0,0.21574986]
[1755148341731,0.22463411,123050.0,123040.0,0.33696631]
[1755148342119,0.22463411,123050.0,123040.0,1.49094599]
[1755148342426,0.02375821,123050.0,123040.0,1.09734599]
[1755148342614,0.10599411,123050.0,123040.0,1.85262599]
[1755148342815,0.10599411,123050.0,123040.0,1.09834599]
[1755148343019,0.02475821,123050.0,123040.0,1.85262599]
[1755148343220,0.02675821,123050.0,123040.0,1.85306599]
[1755148343518,0.10799411,123050.0,123040.0,1.85306599]
[1755148343726,0.10799411,123050.0,123040.0,1.09834599]
[1755148344028,0.16674411,123050.0,123040.0,1.45352631]
[1755148344528,0.16674411,123050.0,123040.0,1.85310599]
[1755148344529,0.19250411,123050.0,123040.0,1.85310599]
[1755148344728,0.21476411,123050.0,123040.0,1.09272631]
[1755148344930,0.22864411,123050.0,123040.0,1.09300631]
[1755148345133,0.22864411,123050.0,123040.0,1.49258599]
[1755148345329,0.22864411,123050.0,123040.0,1.09300631]
[1755148345626,0.22864411,123050.0,123040.0,1.08080895]
[1755148346229,0.22864411,123050.0,123040.0,1.08068895]
[1755148346426,0.22864411,123050.0,123040.0,0.33795996]
[1755148346826,0.35864411,123050.0,123040.0,0.32560895]
[1755148347228,0.22864411,123050.0,123040.0,0.32560895]
[1755148348234,1.72114747,123050.0,123040.0,0.01072645]
[1755148348421,0.1048557,123020.0,123010.0,0.5462367]
[1755148348626,0.1286103,123020.0,123010.0,0.6423667]
[1755148348928,0.1286103,123020.0,123010.0,0.77647933]
[1755148349336,0.1286103,123020.0,123010.0,0.66800248]
[1755148349337,0.12844345,123020.0,123010.0,0.66800248]
[1755148349633,0.23944345,123020.0,123010.0,1.46438248]
[1755148349826,0.24144345,123020.0,123010.0,1.46438248]
[1755148350026,0.13144345,123020.0,123010.0,1.46438248]
[1755148350331,0.13144345,123020.0,123010.0,1.47932248]
[1755148350727,0.13144345,123020.0,123010.0,1.16371216]
[1755148350929,0.11756345,123020.0,123010.0,1.16371216]
[1755148351229,0.13144345,123020.0,123010.0,1.92767216]
[1755148351830,0.13144345,123020.0,123010.0,1.92791216]
[1755148352029,0.13144345,123020.0,123010.0,1.52833248]
[1755148352232,0.13144345,123020.0,123010.0,1.92791216]
[1755148352435,0.13144345,123020.0,123010.0,1.52833248]
[1755148352637,0.13144345,123020.0,123010.0,1.92791216]
[1755148353237,0.13144345,123020.0,123010.0,1.94061986]
[1755148353635,0.13144345,123020.0,123010.0,1.94461986]
[1755148354032,0.13144345,123020.0,123010.0,1.54504018]
[1755148354237,0.13144345,123020.0,123010.0,1.94461986]
[1755148354533,0.13144345,123020.0,123010.0,1.94061986]
[1755148355137,0.13144345,123020.0,123010.0,1.54104018]
[1755148355436,0.13144345,123020.0,123010.0,1.94061986]
[1755148355838,0.13144345,123020.0,123010.0,1.57981986]
[1755148356026,0.13967301,123020.0,123010.0,1.57981986]
[1755148356230,0.13967301,123020.0,123010.0,1.18024018]
[1755148356433,0.13967301,123020.0,123010.0,1.57981986]
[1755148356645,0.11607301,123020.0,123010.0,1.58005986]
[1755148356835,0.11607301,123020.0,123010.0,1.59078631]
[1755148357138,0.08433535,123020.0,123010.0,1.59078631]
[1755148357334,0.2437378,123040.0,123020.0,0.2904168]
[1755148357533,0.0812451,123040.0,123030.0,1.72494878]
[1755148357733,0.0812451,123040.0,123030.0,1.73765648]
[1755148358131,0.0812451,123040.0,123030.0,1.85821516]
[1755148358338,0.08134326,123040.0,123030.0,1.85821516]
[1755148358633,0.08955571,123040.0,123030.0,1.09385516]
[1755148358940,0.08955571,123040.0,123030.0,1.85813516]
[1755148359637,0.08955571,123040.0,123030.0,1.85817516]
[1755148360231,0.08955571,123040.0,123030.0,1.45859548]
[1755148360535,0.08955571,123040.0,123030.0,1.09385516]
[1755148360837,0.08955571,123040.0,123030.0,1.09755548]
[1755148360838,0.13966571,123040.0,123030.0,1.09755548]
[1755148362541,0.13966571,123040.0,123030.0,0.33347548]
[1755148362842,0.13966571,123040.0,123030.0,1.09763548]
[1755148364144,0.15004571,123040.0,123030.0,1.09763548]
[1755148364345,0.16392571,123040.0,123030.0,1.09763548]
[1755148364738,0.16192571,123040.0,123030.0,0.33347548]
[1755148365043,0.16392571,123040.0,123030.0,0.33547548]
[1755148367146,0.16492571,123040.0,123030.0,0.33547548]
[1755148367836,0.16392571,123040.0,123030.0,0.33547548]
[1755148368036,0.16492571,123040.0,123030.0,0.33547548]
[1755148368749,0.14266571,123040.0,123030.0,0.73505516]
[1755148369134,0.10227571,123040.0,123030.0,0.73505516]
[1755148369341,0.12574028,123040.0,123030.0,1.09585516]
[1755148370148,0.10780783,123040.0,123030.0,1.10658161]
[1755148370348,0.10781287,123040.0,123030.0,1.86966161]
[1755148370647,0.10781287,123040.0,123030.0,1.10658161]
[1755148370849,0.10781287,123040.0,123030.0,1.86966161]
[1755148371744,0.10781287,123040.0,123030.0,1.86974296]
[1755148372250,0.10781287,123040.0,123030.0,1.47016328]
[1755148372648,0.10781287,123040.0,123030.0,1.86974296]
[1755148373350,0.10781287,123040.0,123030.0,1.47016096]
[1755148373550,0.10781287,123040.0,123030.0,1.86974064]
[1755148374044,0.10781287,123040.0,123030.0,1.47016096]
[1755148374250,0.10781287,123040.0,123030.0,1.86974064]
[1755148375950,0.10781287,123040.0,123030.0,1.88227268]
[1755148376151,0.10781287,123040.0,123030.0,1.11919268]
[1755148376450,0.10781287,123040.0,123030.0,1.88139268]
[1755148377151,0.10781287,123040.0,123030.0,1.481813]
[1755148377353,0.10781287,123040.0,123030.0,1.88139268]
[1755148377651,0.10781287,123040.0,123030.0,1.481813]
[1755148377853,0.10781287,123040.0,123030.0,1.88139268]
[1755148378050,0.10781287,123040.0,123030.0,1.481813]
[1755148378249,0.10781287,123040.0,123030.0,1.88139268]
[1755148379159,0.10781287,123040.0,123030.0,1.11919268]
[1755148379355,0.10781287,123040.0,123030.0,1.88067268]
[1755148380355,0.10781287,123040.0,123030.0,1.481093]
[1755148380855,0.10781287,123040.0,123030.0,1.88067268]
[1755148381349,0.10781287,123040.0,123030.0,1.11919268]
[1755148381550,0.10781287,123040.0,123030.0,1.88019268]
[1755148381957,0.10781287,123040.0,123030.0,1.11919268]
[1755148382155,0.10781287,123040.0,123030.0,1.88019268]
[1755148384356,0.10781287,123040.0,123030.0,1.86766064]
[1755148384560,0.10781287,123040.0,123030.0,1.88020302]
[1755148386256,0.10781287,123040.0,123030.0,1.48062334]
[1755148386462,0.12610385,123040.0,123030.0,0.71962334]
[1755148386669,0.19901385,123040.0,123030.0,0.34809689]
[1755148386959,0.59859353,123040.0,123030.0,0.34809689]
[1755148387360,0.19901385,123040.0,123030.0,0.70889689]
[1755148387761,0.19901385,123040.0,123030.0,1.10847657]
[1755148388063,0.19901385,123040.0,123030.0,0.34809689]
[1755148388367,0.59859353,123040.0,123030.0,1.03662779]
[1755148388654,0.19901385,123040.0,123030.0,1.02408541]
[1755148388855,0.59859353,123040.0,123030.0,1.02408541]
[1755148389458,0.59859353,123040.0,123030.0,0.33457451]
[1755148389662,0.19901385,123040.0,123030.0,0.33457451]
[1755148393963,0.19901385,123040.0,123030.0,0.69537451]
[1755148394171,0.19901385,123040.0,123030.0,0.69537524]
[1755148394367,0.19901385,123040.0,123030.0,0.33457524]
[1755148396563,0.19897961,123040.0,123030.0,0.33457524]
[1755148396759,0.95935929,123040.0,123030.0,0.33457524]
[1755148396962,0.55977961,123040.0,123030.0,0.25332614]
[1755148397172,0.95935929,123040.0,123030.0,0.25332614]
[1755148397769,0.55977961,123040.0,123030.0,0.25332614]
[1755148398167,0.95935929,123040.0,123030.0,0.26596685]
[1755148398376,0.55977961,123040.0,123030.0,0.26596685]
[1755148398575,0.95935929,123040.0,123030.0,0.26596685]
[1755148399471,0.95935929,123040.0,123030.0,0.17081685]
[1755148399472,1.06935929,123040.0,123030.0,0.17081685]
[1755148399669,1.06935929,123040.0,123030.0,0.15817614]
[1755148402378,0.66977961,123040.0,123030.0,0.15817614]
[1755148402576,1.06935929,123040.0,123030.0,0.15817614]
[1755148402876,0.66977961,123040.0,123030.0,0.15817614]
[1755148403076,1.06935929,123040.0,123030.0,0.15817614]
[1755148404076,1.85027929,123040.0,123030.0,0.15817614]
[1755148404376,1.06935929,123040.0,123030.0,0.15817614]
[1755148404572,1.45057961,123040.0,123030.0,0.15817614]
[1755148404767,1.85015929,123040.0,123030.0,0.15817614]
[1755148404973,1.75031929,123040.0,123030.0,0.15817783]
[1755148405878,1.75031929,123040.0,123030.0,0.18121783]
[1755148406078,1.75031929,123040.0,123030.0,0.23902783]
[1755148407675,1.74999929,123040.0,123030.0,0.20483783]
[1755148407884,1.35041961,123040.0,123030.0,0.25275725]
[1755148408080,0.56977961,123040.0,123030.0,0.26539281]
[1755148408271,0.20802961,123040.0,123030.0,0.74431248]
[1755148408467,0.24832961,123040.0,123030.0,0.74431248]
[1755148408677,0.24832961,123040.0,123030.0,0.3447328]
[1755148410882,0.24832961,123040.0,123030.0,0.34473214]
[1755148411384,0.24832961,123040.0,123030.0,0.35737021]
[1755148413892,0.24832961,123040.0,123030.0,0.3573731]
[1755148414084,0.24832961,123040.0,123030.0,0.34473214]
[1755148414484,0.24832961,123040.0,123030.0,0.35737488]
[1755148416997,0.24832961,123040.0,123030.0,0.35737954]
[1755148417400,0.24832961,123040.0,123030.0,0.34473214]
[1755148417800,0.24838144,123040.0,123030.0,0.34473214]
[1755148418001,0.20808144,123040.0,123030.0,0.34473214]
[1755148418303,0.24838144,123040.0,123030.0,0.34473214]
[1755148419300,0.64796112,123040.0,123030.0,0.26348304]
[1755148419497,1.42808112,123040.0,123030.0,0.26348304]
[1755148419695,1.02850144,123040.0,123030.0,0.26348304]
[1755148420701,1.02850144,123040.0,123030.0,0.34473164]
[1755148421499,0.24838144,123040.0,123030.0,0.34473164]
[1755148421702,1.02782144,123040.0,123030.0,0.34473164]
[1755148421901,1.42740112,123040.0,123030.0,0.34473164]
[1755148424906,0.64796112,123040.0,123030.0,0.34473164]
[1755148425106,1.42664112,123040.0,123030.0,0.34473164]
[1755148425707,1.78744112,123040.0,123030.0,0.34473164]
[1755148425907,1.78744112,123040.0,123030.0,0.34473199]
[1755148426210,0.59089046,123040.0,123030.0,0.34473199]
[1755148426709,0.99047014,123040.0,123030.0,0.34473199]
[1755148427204,0.59089046,123040.0,123030.0,0.34473199]
[1755148427511,0.59089046,123040.0,123030.0,0.16969339]
[1755148428110,0.99047014,123040.0,123030.0,0.34473229]
[1755148428605,0.59089046,123040.0,123030.0,0.34473229]
[1755148429111,0.23009046,123040.0,123030.0,0.34473229]
[1755148429301,1.01369046,123040.0,123030.0,0.34473229]
[1755148429809,1.01385046,123040.0,123030.0,0.74431197]
[1755148430307,0.07558536,123040.0,123030.0,0.75691777]
[1755148430507,0.02658536,123040.0,123030.0,1.54055698]
[1755148430712,0.10782776,123040.0,123030.0,1.54055698]
[1755148430914,0.02658536,123040.0,123030.0,1.54055698]
[1755148431318,0.05309536,123040.0,123030.0,1.54019698]
[1755148432006,0.02658536,123040.0,123030.0,1.54019698]
[1755148432314,0.15782776,123040.0,123030.0,1.1406173]
[1755148432513,0.50740744,123040.0,123030.0,0.22920085]
[1755148432813,1.32432776,123040.0,123030.0,0.3436073]
[1755148433002,1.72390744,123040.0,123030.0,0.3573373]
[1755148433313,0.94054744,123040.0,123030.0,0.3573373]
[1755148433517,1.72366744,123040.0,123030.0,0.3573373]
[1755148433915,1.72366744,123040.0,123030.0,0.35733363]
[1755148434215,1.32408776,123040.0,123030.0,0.34473229]
[1755148434417,1.72366744,123040.0,123030.0,0.34473229]
[1755148434616,0.94054744,123040.0,123030.0,0.34473259]
[1755148434911,1.72330744,123040.0,123030.0,0.34473259]
[1755148435212,1.06054744,123040.0,123030.0,0.15845694]
[1755148435408,1.84306744,123040.0,123030.0,0.15845694]
[1755148435902,1.84306744,123040.0,123030.0,0.23926694]
[1755148436101,1.06054744,123040.0,123030.0,0.25313694]
[1755148436401,1.84286744,123040.0,123030.0,0.25313694]
[1755148436812,1.44328776,123040.0,123030.0,0.25313694]
[1755148437016,1.84286744,123040.0,123030.0,0.25313694]
[1755148439011,0.58862776,123040.0,123030.0,0.19664694]
[1755148439311,1.84148744,123040.0,123030.0,0.25313694]
[1755148439509,1.06040744,123040.0,123030.0,0.25313694]
[1755148439705,1.06040744,123040.0,123030.0,0.33438614]
[1755148439907,1.84124744,123040.0,123030.0,0.33438614]
[1755148440221,1.44166776,123040.0,123030.0,0.33438614]
[1755148440410,1.84124744,123040.0,123030.0,0.33438614]
[1755148440906,1.44166776,123040.0,123030.0,0.21670339]
[1755148441107,1.84124744,123040.0,123030.0,0.29795269]
[1755148441318,1.44166776,123040.0,123030.0,0.33124269]
[1755148441519,1.84092744,123040.0,123030.0,0.34511269]
[1755148441720,1.06040744,123040.0,123030.0,0.26386339]
[1755148441926,1.84092744,123040.0,123030.0,0.24999339]
[1755148442123,1.06040744,123040.0,123030.0,0.16918339]
[1755148442316,1.84152744,123040.0,123030.0,0.16918339]
[1755148442820,1.06040744,123040.0,123030.0,0.16918339]
[1755148443011,1.84152744,123040.0,123030.0,0.16918339]
[1755148443723,1.43194776,123040.0,123030.0,0.16918339]
[1755148444020,1.83152744,123040.0,123030.0,0.16918339]
[1755148444221,1.43230776,123040.0,123030.0,0.16918339]
[1755148444521,1.83188744,123040.0,123030.0,0.16918339]
[1755148444721,1.05040744,123040.0,123030.0,0.15845694]
[1755148444922,1.83168744,123040.0,123030.0,0.15845694]
[1755148445722,1.05040744,123040.0,123030.0,0.15845694]
[1755148446023,1.83180744,123040.0,123030.0,0.15845694]
[1755148446317,1.05040744,123040.0,123030.0,0.15845694]
[1755148446520,1.83120744,123040.0,123030.0,0.15845694]
[1755148447523,1.43162776,123040.0,123030.0,0.15845694]
[1755148447718,1.83108744,123040.0,123030.0,0.15845694]
[1755148447928,1.43118776,123040.0,123030.0,0.34709406]
[1755148448113,0.65082776,123040.0,123030.0,0.26584486]
[1755148448316,1.43266776,123040.0,123030.0,0.26584486]
[1755148448513,1.83224744,123040.0,123030.0,0.26584465]
[1755148448922,1.83244744,123040.0,123030.0,0.34709395]
[1755148449225,1.83244744,123040.0,123030.0,0.26584465]
[1755148449925,1.05040744,123040.0,123030.0,0.26584465]
[1755148450122,1.83244744,123040.0,123030.0,0.25313734]
[1755148450626,1.83244744,123040.0,123030.0,0.33438664]
[1755148450825,1.83244744,123040.0,123030.0,0.25313734]
[1755148451020,1.83244744,123040.0,123030.0,0.33438664]
[1755148451217,1.83212744,123040.0,123030.0,0.33430529]
[1755148451822,1.43154776,123040.0,123030.0,0.33430529]
[1755148452023,1.83212744,123040.0,123030.0,0.33430529]
[1755148452424,1.83012744,123040.0,123030.0,0.33230529]
[1755148452624,1.83212744,123040.0,123030.0,0.33330529]
[1755148452823,1.43154776,123040.0,123030.0,0.25205599]
[1755148453128,1.83212744,123040.0,123030.0,0.25205599]
[1755148453330,1.04840744,123040.0,123030.0,0.25105599]
[1755148453629,1.83228744,123040.0,123030.0,0.25213734]
[1755148454429,1.83228744,123040.0,123030.0,0.25213735]
[1755148455819,1.83228744,123040.0,123030.0,0.25113735]
[1755148456021,1.83328744,123040.0,123030.0,0.25113735]
[1755148456224,1.83328744,123040.0,123030.0,0.26384467]
[1755148456425,1.05040744,123040.0,123030.0,0.34509407]
[1755148456632,1.83136744,123040.0,123030.0,0.26384467]
[1755148456822,1.83236744,123040.0,123030.0,0.26384467]
[1755148458532,1.83236744,123040.0,123030.0,0.24997467]
[1755148459027,1.83236744,123040.0,123030.0,0.31851675]
[1755148459235,1.83236744,123040.0,123030.0,0.23726735]
[1755148459532,1.83236744,123040.0,123030.0,0.31851675]
[1755148459733,1.83236744,123040.0,123030.0,0.23726735]
[1755148460134,1.83236744,123040.0,123030.0,0.31851675]
[1755148460432,1.83236744,123040.0,123030.0,0.31851666]
[1755148461234,1.83208744,123040.0,123030.0,0.23726726]
[1755148461434,1.83208744,123040.0,123030.0,0.20397726]
[1755148461729,1.83208744,123040.0,123030.0,0.17166726]
[1755148462726,1.88234042,123040.0,123030.0,0.17166726]
[1755148465032,1.43250776,123040.0,123030.0,0.17166726]
[1755148465233,1.88234042,123040.0,123030.0,0.17166726]
[1755148467231,1.43250776,123040.0,123030.0,0.17166726]
[1755148467437,1.88234042,123040.0,123030.0,0.17166726]
[1755148467834,1.88234042,123040.0,123030.0,0.15645726]
[1755148468435,1.88234042,123040.0,123030.0,0.17233726]
[1755148468638,1.88234042,123040.0,123030.0,0.66646718]
[1755148468833,1.88234042,123040.0,123030.0,0.65375992]
[1755148469027,1.43250776,123040.0,123030.0,0.65375992]
[1755148469334,1.88234042,123040.0,123030.0,0.65375992]
[1755148469537,1.88234042,123040.0,123030.0,0.20392726]
[1755148471037,1.88234042,123040.0,123030.0,0.13334726]
[1755148471241,2.33043492,123040.0,123030.0,0.14407371]
[1755148471934,1.88060226,123040.0,123030.0,0.14407371]
[1755148472131,1.71294692,123040.0,123030.0,0.13334726]
[1755148472330,2.55093468,123040.0,123030.0,0.08213726]
[1755148472540,0.0812693,123000.0,122990.0,0.02368]
[1755148472842,1.47522182,123000.0,122990.0,0.11341679]
[1755148473032,2.25694182,123000.0,122990.0,0.11341679]
[1755148473240,1.47522182,123000.0,122990.0,0.01080645]
[1755148473550,2.25678182,123000.0,122990.0,8e-05]
[1755148473737,2.61758182,123000.0,122990.0,8e-05]
[1755148474039,1.83802182,123000.0,122990.0,8e-05]
[1755148474240,1.7197565,123000.0,122990.0,8e-05]
[1755148474440,0.0812891,122970.0,122960.0,0.0812957]
[1755148474742,0.64319019,122970.0,122960.0,0.21751477]